bitfinex/quotes_ETHUSD_20250504
["timestamp","ask_amount","ask_price","bid_price","bid_amount"]
[1746373695839,8.45650797,1832.7,1832.3,6.25182156]
[1746373696131,0.50293481,1832.4,1832.3,6.25182156]
[1746373696338,8.45650797,1832.7,1832.3,0.7942]
[1746373696504,0.50293481,1832.4,1832.3,0.7942]
[1746373696706,5.45675248,1832.6,1832.3,0.7942]
[1746373696913,0.50293481,1832.4,1832.3,6.25181992]
[1746373697113,8.4565716,1832.7,1832.3,9.32498074]
[1746373697320,0.50293481,1832.4,1832.3,6.25181992]
[1746373697521,6.69512496,1832.8,1832.3,11.70924558]
[1746373697749,0.50361077,1832.4,1832.3,12.35023776]
[1746373697929,1.23886572,1832.8,1832.5,5.45702553]
[1746373698257,0.50379511,1832.7,1832.5,5.45702553]
[1746373698456,0.50379511,1832.7,1832.6,4.521]
[1746373700449,5.96022551,1832.7,1832.6,4.521]
[1746373700942,0.50379511,1832.7,1832.6,4.521]
[1746373702550,5.96022551,1832.7,1832.6,4.521]
[1746373703253,0.50379511,1832.7,1832.6,4.521]
[1746373704047,5.96022551,1832.7,1832.6,4.521]
[1746373704242,0.50379511,1832.7,1832.6,4.521]
[1746373707859,0.50379511,1832.7,1832.6,10.43528454]
[1746373708035,0.50379511,1832.7,1832.6,11.19898454]
[1746373708241,9.28577946,1833.0,1832.6,11.19898454]
[1746373708455,0.50459388,1832.9,1832.6,11.19898454]
[1746373709030,0.50459388,1832.9,1832.6,5.7422564]
[1746373709230,5.96043912,1832.9,1832.6,5.7422564]
[1746373709944,11.41654319,1832.9,1832.6,5.7422564]
[1746373710144,5.96043912,1832.9,1832.6,5.2847]
[1746373710559,5.45615107,1832.8,1832.6,4.521]
[1746373710770,0.5050239,1832.7,1832.6,4.521]
[1746373712566,5.86017736,1832.9,1832.6,4.521]
[1746373712865,0.5050239,1832.8,1832.6,4.521]
[1746373713062,0.5050239,1832.8,1832.6,18.52413262]
[1746373713371,0.40433212,1832.9,1832.7,0.8295]
[1746373713665,5.4555835,1833.0,1832.7,0.8295]
[1746373714371,13.86588701,1833.1,1832.7,0.8295]
[1746373714834,13.86588781,1833.1,1832.7,0.8295]
[1746373715033,8.82981221,1833.1,1832.7,3.31049336]
[1746373715238,5.45557338,1833.0,1832.7,3.31049336]
[1746373715438,8.82988242,1833.1,1832.7,8.76684976]
[1746373715869,8.82973503,1833.1,1832.7,3.31049336]
[1746373716061,5.45564158,1833.0,1832.7,3.31049336]
[1746373716262,5.45564158,1833.0,1832.8,0.33104934]
[1746373716769,0.50490104,1832.9,1832.8,0.33104934]
[1746373718372,14.28534428,1833.1,1832.8,0.33104934]
[1746373718675,13.52364428,1833.1,1832.7,8.7669169]
[1746373718843,0.50631396,1833.0,1832.7,8.7669169]
[1746373719360,0.50631396,1833.0,1832.7,8.82147642]
[1746373722172,5.9618585,1833.0,1832.7,3.36505288]
[1746373722483,0.50631396,1833.0,1832.7,8.82148084]
[1746373725782,0.50631396,1833.0,1832.7,14.2777139]
[1746373725959,0.50631396,1833.0,1832.7,14.22315438]
[1746373726286,0.50631396,1833.0,1832.8,5.456127]
[1746373726892,0.50631396,1833.0,1832.7,8.76672457]
[1746373727095,0.50631396,1833.0,1832.8,5.45611149]
[1746373727792,0.50631396,1833.0,1832.7,8.82137929]
[1746373727958,0.50631396,1833.0,1832.7,6.28582761]
[1746373728164,0.50631396,1833.0,1832.8,5.45613136]
[1746373728470,0.50631396,1833.0,1832.8,5.45594248]
[1746373729395,0.50631396,1833.0,1832.7,6.28572289]
[1746373731494,0.50631396,1833.0,1832.7,6.28571977]
[1746373731788,0.50631396,1833.0,1832.7,11.74192936]
[1746373731971,0.50631396,1833.0,1832.8,4.525]
[1746373732402,1.36374611,1833.0,1832.8,4.525]
[1746373732697,5.96199166,1833.0,1832.8,4.525]
[1746373736697,5.96199166,1833.0,1832.7,4.525]
[1746373739607,0.50631396,1833.0,1832.8,0.81]
[1746373739793,0.50631396,1833.0,1832.9,6.26583501]
[1746373739994,0.50631396,1833.0,1832.9,12.36444711]
[1746373740493,0.50631396,1833.0,1832.9,14.14650509]
[1746373744423,0.40370386,1833.3,1833.1,5.45521698]
[1746373744574,0.40370386,1833.3,1833.1,9.98021698]
[1746373744779,5.85818055,1833.4,1833.1,9.98021698]
[1746373746609,0.42095696,1833.3,1833.1,9.98021698]
[1746373746781,0.42095696,1833.3,1833.1,10.97823868]
[1746373747112,0.82309271,1833.3,1833.1,10.97823868]
[1746373749112,0.82309271,1833.3,1833.1,5.5230217]
[1746373749325,0.82309271,1833.3,1833.1,10.97823094]
[1746373751014,0.82309271,1833.3,1833.1,5.5230217]
[1746373751388,0.82309271,1833.3,1833.1,10.97824249]
[1746373755023,0.82309271,1833.3,1833.1,5.5230217]
[1746373755324,0.82309271,1833.3,1833.1,4.525]
[1746373758030,2.1933027,1833.2,1833.0,7.0]
[1746373758236,6.67834763,1833.1,1833.0,7.0]
[1746373760339,1.22310788,1833.1,1833.0,7.0]
[1746373760640,0.42360788,1833.1,1833.0,7.0]
[1746373762648,8.8569956,1833.3,1833.0,7.0]
[1746373762811,0.42490266,1833.2,1833.0,7.0]
[1746373765676,5.87984556,1833.2,1833.0,7.0]
[1746373767156,0.42490266,1833.2,1833.0,7.0]
[1746373768431,5.8798943,1833.2,1833.0,7.0]
[1746373769761,9.54477215,1833.2,1833.0,7.0]
[1746373772730,4.08978051,1833.2,1833.0,7.0]
[1746373774058,4.08978051,1833.2,1833.1,5.45523975]
[1746373774264,4.08978051,1833.2,1833.0,8.35361422]
[1746373774561,4.08978051,1833.2,1833.0,8.40816323]
[1746373774754,4.08978051,1833.2,1833.0,13.86352942]
[1746373775080,4.08978051,1833.2,1833.0,13.80898041]
[1746373776641,4.08978051,1833.2,1833.0,13.80894191]
[1746373776849,0.42490266,1833.2,1833.0,13.80894191]
[1746373777147,0.42490266,1833.2,1833.1,0.8087]
[1746373777554,0.42490266,1833.2,1833.1,6.26393975]
[1746373777758,0.42490266,1833.2,1833.1,8.13586649]
[1746373779470,0.42490266,1833.2,1833.1,8.19041187]
[1746373779685,0.42490266,1833.2,1833.1,14.28902397]
[1746373779977,0.42490266,1833.2,1833.1,14.23447859]
[1746373780640,0.01214705,1833.4,1833.3,5.45464462]
[1746373780837,0.01214705,1833.4,1833.3,6.26334462]
[1746373781061,0.43680324,1833.4,1833.3,7.88797115]
[1746373783992,0.43680324,1833.4,1833.3,13.98658325]
[1746373784289,0.43680324,1833.4,1833.3,28.48658325]
[1746373789351,0.42465619,1833.4,1833.3,28.48658325]
[1746373789686,4.07715456,1833.7,1833.3,28.48658325]
[1746373789846,4.07715456,1833.7,1833.4,2.84865832]
[1746373790184,0.42964816,1833.6,1833.4,2.84865832]
[1746373790571,9.53061134,1833.7,1833.4,2.84865832]
[1746373791054,10.34781134,1833.7,1833.4,2.84865832]
[1746373791246,0.43007945,1833.6,1833.4,2.84865832]
[1746373791660,0.43007945,1833.5,1833.4,2.84865832]
[1746373792383,6.68293349,1833.7,1833.4,2.84865832]
[1746373792567,0.43007945,1833.5,1833.4,2.84865832]
[1746373792773,6.68293349,1833.7,1833.4,2.84865832]
[1746373793070,0.43007945,1833.5,1833.4,2.84865832]
[1746373793593,5.45378705,1833.6,1833.4,2.84865832]
[1746373793887,0.43007945,1833.5,1833.4,2.84865832]
[1746373794092,6.68308489,1833.7,1833.4,2.84865832]
[1746373794396,0.43007945,1833.6,1833.4,2.84865832]
[1746373794680,6.68308489,1833.7,1833.4,2.84865832]
[1746373794851,0.43007945,1833.6,1833.4,2.84865832]
[1746373795246,0.43007945,1833.5,1833.4,2.84865832]
[1746373795650,6.68308489,1833.7,1833.4,2.84865832]
[1746373795983,0.42977141,1833.6,1833.4,2.84865832]
[1746373796483,6.68308489,1833.7,1833.4,2.84865832]
[1746373796986,0.42977141,1833.6,1833.4,2.84865832]
[1746373797156,0.42977141,1833.6,1833.5,0.28486583]
[1746373797479,6.68308489,1833.7,1833.4,2.84865832]
[1746373797685,0.42977141,1833.6,1833.4,2.84865832]
[1746373797985,6.68308489,1833.7,1833.4,2.84865832]
[1746373798183,0.42977141,1833.5,1833.4,2.84865832]
[1746373798384,6.68308489,1833.7,1833.4,2.84865832]
[1746373798586,0.42977141,1833.5,1833.4,2.84865832]
[1746373798784,6.68308489,1833.7,1833.4,2.84865832]
[1746373798963,0.42977141,1833.5,1833.4,2.84865832]
[1746373799163,5.45379142,1833.6,1833.4,2.84865832]
[1746373799373,0.42977141,1833.5,1833.4,2.84865832]
[1746373799576,0.42977141,1833.5,1833.3,6.0986121]
[1746373802698,0.42977141,1833.5,1833.3,10.6256121]
[1746373803805,0.42977141,1833.5,1833.3,16.08024852]
[1746373804099,0.42977141,1833.5,1833.3,30.58024852]
[1746373806198,0.42977141,1833.5,1833.3,30.58003579]
[1746373806714,0.42977141,1833.5,1833.3,25.1256121]
[1746373806866,0.42977141,1833.5,1833.3,30.58024147]
[1746373809322,0.42977141,1833.5,1833.4,5.45434711]
[1746373809595,1.22947671,1833.7,1833.5,5.45400829]
[1746373809998,0.43007947,1833.6,1833.5,5.45400829]
[1746373810409,1.22947671,1833.7,1833.5,5.45400829]
[1746373810607,0.43007947,1833.6,1833.5,5.45400829]
[1746373810980,1.22947671,1833.7,1833.5,5.45400829]
[1746373811302,0.43007947,1833.6,1833.5,13.49019949]
[1746373811507,0.43007947,1833.6,1833.5,13.43566289]
[1746373811669,3.66487785,1833.8,1833.6,5.4534934]
[1746373812013,3.66487785,1833.8,1833.7,5.45345476]
[1746373812992,3.66487785,1833.8,1833.6,5.50808983]
[1746373813194,3.66487785,1833.8,1833.6,7.40246138]
[1746373814308,3.66487785,1833.8,1833.6,12.85600395]
[1746373814597,3.66487785,1833.8,1833.6,7.34791874]
[1746373814829,3.66487785,1833.8,1833.6,7.40245053]
[1746373815368,3.66487785,1833.8,1833.6,7.40244035]
[1746373815573,3.66487785,1833.8,1833.7,0.74024404]
[1746373815783,3.66487785,1833.8,1833.7,6.1936988]
[1746373815987,2.1933027,1834.0,1833.7,10.6976988]
[1746373816809,2.1933027,1834.0,1833.8,5.45313981]
[1746373817306,2.1933027,1834.0,1833.7,10.69752426]
[1746373819410,7.64589767,1834.0,1833.7,5.24424404]
[1746373819604,2.1933027,1834.0,1833.7,10.69767683]
[1746373820000,7.64597017,1834.0,1833.7,5.24424404]
[1746373820913,8.04593518,1834.0,1833.7,5.24424404]
[1746373821816,0.4336525,1833.9,1833.7,5.24424404]
[1746373822813,0.4336525,1833.9,1833.7,10.69759247]
[1746373823020,0.4336525,1833.9,1833.8,1.06975925]
[1746373823186,0.4336525,1833.9,1833.8,6.52291662]
[1746373823516,0.4336525,1833.9,1833.8,1.06975925]
[1746373825624,0.4336525,1833.9,1833.8,6.52291662]
[1746373826425,0.4336525,1833.9,1833.8,1.06975925]
[1746373827538,0.4336525,1833.9,1833.8,6.52291662]
[1746373827707,0.4336525,1833.9,1833.8,7.34204316]
[1746373828031,0.4336525,1833.9,1833.8,7.28751662]
[1746373828830,0.4336525,1833.9,1833.8,21.78751662]
[1746373829844,3.66487785,1834.2,1834.0,5.45227484]
[1746373830016,3.66487785,1834.2,1834.1,5.04922748]
[1746373830341,3.66487785,1834.2,1834.1,11.14783958]
[1746373830514,3.66487785,1834.2,1834.1,16.60010499]
[1746373835238,2.6049338,1834.4,1834.1,16.60010499]
[1746373835637,2.1933027,1834.4,1834.2,5.45196617]
[1746373835839,4.46407785,1834.6,1834.3,5.99683365]
[1746373836335,4.86398549,1834.6,1834.3,0.54519662]
[1746373836746,0.53130124,1834.5,1834.3,0.54519662]
[1746373837511,0.53130124,1834.5,1834.2,5.45172191]
[1746373838939,0.53130124,1834.5,1834.2,19.95172191]
[1746373839662,0.53130124,1834.5,1834.2,26.05033401]
[1746373841941,0.53130124,1834.5,1834.2,26.05056934]
[1746373845475,0.53130124,1834.5,1834.2,20.5986121]
[1746373845644,5.98243929,1834.5,1834.3,2.05986121]
[1746373847073,5.97081039,1834.5,1834.3,2.05986121]
[1746373847278,0.51967234,1834.5,1834.2,11.55052883]
[1746373848136,5.97085361,1834.5,1834.2,6.0986121]
[1746373848960,8.16415631,1834.5,1834.2,6.0986121]
[1746373850993,8.16415631,1834.5,1834.2,20.5986121]
[1746373851515,5.45138753,1834.4,1834.2,20.5986121]
[1746373851691,8.1642953,1834.5,1834.3,2.05986121]
[1746373851891,7.32828114,1834.5,1834.3,2.05986121]
[1746373853398,1.87696088,1834.5,1834.3,2.05986121]
[1746373854398,0.49008679,1834.4,1834.3,2.05986121]
[1746373858312,0.49008679,1834.4,1834.2,30.54751725]
[1746373858482,0.49008679,1834.4,1834.2,25.0956121]
[1746373858902,0.49008679,1834.4,1834.2,30.54755961]
[1746373859615,0.49008679,1834.4,1834.2,25.0956121]
[1746373861389,5.9414684,1834.4,1834.2,25.0956121]
[1746373861585,2.68986088,1834.3,1834.2,25.0956121]
[1746373861998,3.17994767,1834.3,1834.2,10.5956121]
[1746373863330,0.49008679,1834.3,1834.2,10.5956121]
[1746373863688,2.68986088,1834.4,1834.2,10.5956121]
[1746373863887,0.49008679,1834.3,1834.2,10.5956121]
[1746373864201,2.68986088,1834.4,1834.2,10.5956121]
[1746373864395,0.49008679,1834.3,1834.2,10.5956121]
[1746373864596,2.68986088,1834.4,1834.2,10.5956121]
[1746373864802,0.49008679,1834.3,1834.2,10.5956121]
[1746373865004,2.68986088,1834.4,1834.2,10.5956121]
[1746373865192,0.49008679,1834.3,1834.2,10.5956121]
[1746373865405,2.68986088,1834.4,1834.2,10.5956121]
[1746373865606,0.49008679,1834.3,1834.2,10.5956121]
[1746373865807,2.68986088,1834.4,1834.2,10.5956121]
[1746373866048,0.49008679,1834.3,1834.2,10.5956121]
[1746373866419,2.68986088,1834.4,1834.2,10.5956121]
[1746373866744,0.49008679,1834.3,1834.2,10.5956121]
[1746373866915,2.68986088,1834.4,1834.2,10.5956121]
[1746373867116,0.49008679,1834.3,1834.2,10.5956121]
[1746373867301,2.68986088,1834.4,1834.2,10.5956121]
[1746373867498,0.49008679,1834.3,1834.2,10.5956121]
[1746373867737,2.68986088,1834.4,1834.2,10.5956121]
[1746373867902,0.49008679,1834.3,1834.2,10.5956121]
[1746373868232,2.68986088,1834.4,1834.2,10.5956121]
[1746373868433,0.49014862,1834.3,1834.2,10.5956121]
[1746373868635,2.68986088,1834.4,1834.2,10.5956121]
[1746373868835,0.49014862,1834.3,1834.2,10.5956121]
[1746373869044,2.68986088,1834.4,1834.2,10.5956121]
[1746373869225,0.49014862,1834.3,1834.2,10.5956121]
[1746373869425,2.68986088,1834.4,1834.2,10.5956121]
[1746373869735,0.49014862,1834.3,1834.2,10.5956121]
[1746373869937,2.68986088,1834.4,1834.2,10.5956121]
[1746373870234,0.49014862,1834.3,1834.2,10.5956121]
[1746373870414,2.68986088,1834.4,1834.2,10.5956121]
[1746373870618,0.49014862,1834.3,1834.2,10.5956121]
[1746373870931,2.68986088,1834.4,1834.2,10.5956121]
[1746373871134,0.49014862,1834.3,1834.2,10.5956121]
[1746373871717,2.68986088,1834.4,1834.2,10.5956121]
[1746373871912,0.49014862,1834.3,1834.2,10.5956121]
[1746373872102,2.68986088,1834.4,1834.2,10.5956121]
[1746373872434,0.49014862,1834.3,1834.2,10.5956121]
[1746373872618,2.68986088,1834.4,1834.2,10.5956121]
[1746373872801,0.49014862,1834.3,1834.2,10.5956121]
[1746373873006,2.68986088,1834.4,1834.2,10.5956121]
[1746373873224,0.49014862,1834.3,1834.2,10.5956121]
[1746373873429,5.54183873,1834.4,1834.2,10.5956121]
[1746373873636,0.49014862,1834.3,1834.2,10.5956121]
[1746373873837,5.54183873,1834.4,1834.2,10.5956121]
[1746373874006,0.49014862,1834.3,1834.2,10.5956121]
[1746373874207,5.54183873,1834.4,1834.2,10.5956121]
[1746373874407,0.49014862,1834.3,1834.2,10.5956121]
[1746373874608,5.54183873,1834.4,1834.2,10.5956121]
[1746373874807,0.49014862,1834.3,1834.2,10.5956121]
[1746373875040,5.54183873,1834.4,1834.2,10.5956121]
[1746373875243,0.49014862,1834.3,1834.2,10.5956121]
[1746373875403,5.54183873,1834.4,1834.2,10.5956121]
[1746373875607,0.49014862,1834.3,1834.2,10.5956121]
[1746373875839,5.54183873,1834.4,1834.2,6.0986121]
[1746373876143,0.49014862,1834.3,1834.2,11.55055836]
[1746373876343,3.66487785,1834.4,1834.2,11.55055836]
[1746373876633,0.49014862,1834.3,1834.2,11.55055836]
[1746373876804,3.66487785,1834.4,1834.2,11.55055836]
[1746373877004,0.49014862,1834.3,1834.2,11.55055836]
[1746373877342,6.56259204,1834.3,1834.2,11.55055836]
[1746373877639,7.05274066,1834.3,1834.2,11.55055836]
[1746373880541,7.05274066,1834.3,1834.2,16.04455836]
[1746373886762,7.05274066,1834.3,1834.2,9.94594626]
[1746373887261,0.49014862,1834.3,1834.2,9.94594626]
[1746373887552,3.66487785,1834.4,1834.2,9.94594626]
[1746373887966,0.49045762,1834.3,1834.2,9.94594626]
[1746373888134,3.66487785,1834.4,1834.2,12.24171733]
[1746373888336,0.49045762,1834.3,1834.2,12.24171733]
[1746373888560,3.66487785,1834.4,1834.2,12.24171733]
[1746373888760,0.49045762,1834.3,1834.2,9.94594626]
[1746373888933,3.66487785,1834.4,1834.2,9.94594626]
[1746373889133,0.49045762,1834.3,1834.2,9.94594626]
[1746373889486,3.66487785,1834.4,1834.2,9.94594626]
[1746373889633,0.49045762,1834.3,1834.2,9.94594626]
[1746373889833,3.66487785,1834.4,1834.2,9.94594626]
[1746373890061,0.49045762,1834.3,1834.2,9.94594626]
[1746373890473,3.66487785,1834.4,1834.2,9.94594626]
[1746373890653,0.49045762,1834.3,1834.2,9.94594626]
[1746373890861,6.56097791,1834.4,1834.2,9.94594626]
[1746373891061,0.49045762,1834.3,1834.2,9.94594626]
[1746373891742,6.56097791,1834.4,1834.2,9.94594626]
[1746373891938,0.49045762,1834.3,1834.2,9.94594626]
[1746373892166,6.56097791,1834.4,1834.2,9.94594626]
[1746373892335,0.49045762,1834.3,1834.2,9.94594626]
[1746373892534,6.56097791,1834.4,1834.2,9.94594626]
[1746373892763,0.49045762,1834.3,1834.2,9.94594626]
[1746373892973,6.56097791,1834.4,1834.2,9.94594626]
[1746373893173,0.49082837,1834.3,1834.2,9.94594626]
[1746373893374,6.56097791,1834.4,1834.2,9.94594626]
[1746373893561,0.49082837,1834.3,1834.2,9.94594626]
[1746373893765,6.56097791,1834.4,1834.2,9.94594626]
[1746373894087,0.49082837,1834.3,1834.2,9.94594626]
[1746373894365,6.56097791,1834.4,1834.2,9.94594626]
[1746373894569,0.49082837,1834.3,1834.2,9.94594626]
[1746373894757,3.66487785,1834.4,1834.2,9.94594626]
[1746373894958,0.49082837,1834.3,1834.2,13.54562849]
[1746373895268,3.66487785,1834.4,1834.3,5.45167093]
[1746373896884,4.15570622,1834.4,1834.3,5.45167093]
[1746373897302,4.15570622,1834.4,1834.2,28.85642849]
[1746373897592,4.15570622,1834.4,1834.2,34.30817828]
[1746373898266,4.15570622,1834.4,1834.3,5.45167093]
[1746373899886,4.15570622,1834.4,1834.3,4.494]
[1746373900090,6.0326671,1834.4,1834.3,4.494]
[1746373901365,8.28020414,1834.4,1834.2,6.0986121]
[1746373901561,1.87696088,1834.3,1834.2,6.0986121]
[1746373901987,2.36778925,1834.3,1834.2,6.0986121]
[1746373904401,2.36778925,1834.3,1834.1,9.94522326]
[1746373904889,2.36778925,1834.3,1834.1,4.493]
[1746373907406,5.26432306,1834.3,1834.1,4.493]
[1746373908701,5.26432306,1834.3,1834.1,9.94525715]
[1746373911718,6.57624922,1834.2,1834.1,9.94525715]
[1746373912101,7.06670684,1834.2,1834.1,9.94525715]
[1746373914820,0.49045762,1834.2,1834.1,9.94525715]
[1746373922307,0.49045762,1834.2,1834.1,12.09487658]
[1746373924234,0.49045762,1834.2,1834.1,12.84937658]
[1746373924592,3.67971541,1834.3,1834.2,5.45196816]
[1746373924919,3.67971541,1834.3,1834.2,19.95196816]
[1746373926220,3.67971541,1834.3,1834.2,20.70646816]
[1746373926417,3.67971541,1834.3,1834.2,23.98660263]
[1746373926887,4.17184147,1834.3,1834.2,23.98660263]
[1746373927720,4.17184147,1834.3,1834.2,30.08521473]
[1746373929611,0.49212606,1834.3,1834.2,30.08521473]
[1746373929923,5.55667629,1834.6,1834.4,5.4511761]
[1746373930429,5.55667629,1834.6,1834.5,5.45107658]
[1746373930797,5.55667629,1834.6,1834.4,6.02431744]
[1746373931300,5.55667629,1834.6,1834.5,5.45107658]
[1746373932128,3.67971541,1834.6,1834.5,9.94407658]
[1746373933114,3.67971541,1834.6,1834.5,16.04268868]
[1746373933312,3.67971541,1834.6,1834.5,18.32516929]
[1746373933608,3.67971541,1834.7,1834.6,5.45077946]
[1746373934535,5.55667629,1834.7,1834.5,32.82488551]
[1746373934699,1.87696088,1834.6,1834.5,32.82488551]
[1746373934903,1.87696088,1834.6,1834.5,27.37409271]
[1746373935334,1.87696088,1834.6,1834.5,32.82516929]
[1746373936135,1.87696088,1834.6,1834.5,27.37409271]
[1746373936304,1.87696088,1834.6,1834.5,32.82516929]
[1746373936651,5.55667629,1834.7,1834.5,32.82516929]
[1746373937812,1.87696088,1834.7,1834.5,32.82516929]
[1746373941144,1.87696088,1834.7,1834.5,27.37409271]
[1746373941344,1.87696088,1834.7,1834.5,25.0916121]
[1746373941818,0.4945356,1834.6,1834.5,25.0916121]
[1746373942341,7.32745336,1834.7,1834.5,25.0916121]
[1746373942541,0.4945356,1834.6,1834.5,25.0916121]
[1746373942944,7.32745336,1834.7,1834.5,25.0916121]
[1746373943146,0.4945356,1834.6,1834.5,25.0916121]
[1746373943448,7.32745336,1834.7,1834.5,25.0916121]
[1746373943636,0.4945356,1834.6,1834.5,25.0916121]
[1746373944545,7.32745336,1834.7,1834.5,25.0916121]
[1746373944745,0.49502985,1834.6,1834.5,25.0916121]
[1746373944945,0.49502985,1834.6,1834.5,10.5916121]
[1746373945126,7.32745336,1834.7,1834.5,10.5916121]
[1746373945440,7.32745336,1834.7,1834.5,25.0916121]
[1746373945441,0.49502985,1834.6,1834.5,25.0916121]
[1746373945947,7.32745336,1834.7,1834.5,25.0916121]
[1746373946136,0.49502985,1834.6,1834.5,25.0916121]
[1746373946452,7.32745336,1834.7,1834.5,25.0916121]
[1746373946640,0.49502985,1834.6,1834.5,25.0916121]
[1746373947047,7.32745336,1834.7,1834.5,25.0916121]
[1746373947548,0.49502985,1834.6,1834.5,25.0916121]
[1746373948224,7.32745336,1834.7,1834.5,25.0916121]
[1746373948431,0.49502985,1834.6,1834.5,25.0916121]
[1746373948852,1.87696088,1834.7,1834.5,25.0916121]
[1746373949151,0.49502985,1834.6,1834.5,25.0916121]
[1746373949452,1.87696088,1834.7,1834.5,25.0916121]
[1746373949639,0.49502985,1834.6,1834.5,25.0916121]
[1746373950242,1.87696088,1834.7,1834.5,25.0916121]
[1746373950436,0.49502985,1834.6,1834.5,25.0916121]
[1746373950617,0.49502985,1834.6,1834.5,33.67271917]
[1746373950824,1.87696088,1834.7,1834.5,33.67271917]
[1746373951023,0.49502985,1834.6,1834.5,28.221674]
[1746373951223,1.87696088,1834.7,1834.5,28.221674]
[1746373951715,0.49502985,1834.6,1834.5,28.221674]
[1746373952143,1.87696088,1834.7,1834.5,28.221674]
[1746373952531,0.49502985,1834.6,1834.5,28.221674]
[1746373953158,1.87696088,1834.7,1834.5,28.221674]
[1746373953448,0.49502985,1834.6,1834.5,28.221674]
[1746373953853,1.87696088,1834.7,1834.5,28.221674]
[1746373954361,0.49502985,1834.6,1834.5,28.221674]
[1746373954661,1.87696088,1834.7,1834.5,28.221674]
[1746373954953,1.87696088,1834.7,1834.6,4.491]
[1746373956665,2.37229965,1834.7,1834.6,4.491]
[1746373958961,7.82278201,1834.7,1834.6,4.491]
[1746373959452,2.37229965,1834.7,1834.6,4.491]
[1746373960659,6.22677946,1834.6,1834.5,6.0986121]
[1746373960960,2.65296088,1834.6,1834.5,6.0986121]
[1746373961463,3.14829965,1834.6,1834.5,6.0986121]
[1746373965873,3.14829965,1834.6,1834.4,14.5]
[1746373967965,1.87696088,1834.5,1834.3,10.5896121]
[1746373968170,1.87696088,1834.4,1834.3,12.24177225]
[1746373968355,2.37143473,1834.4,1834.3,12.24177225]
[1746373968671,2.37143473,1834.4,1834.3,10.5896121]
[1746373968870,9.00483187,1834.4,1834.2,4.49]
[1746373969070,1.87696088,1834.3,1834.2,4.49]
[1746373969571,2.37026093,1834.3,1834.2,4.49]
[1746373971489,0.49330005,1834.3,1834.2,11.54605461]
[1746373971656,0.49330005,1834.3,1834.2,6.09408645]
[1746373971862,0.4060234,1834.4,1834.2,6.09408645]
[1746373972082,0.49330005,1834.3,1834.2,11.54605461]
[1746373972389,0.49330005,1834.3,1834.2,6.09408645]
[1746373972550,5.45108574,1834.5,1834.2,6.09408645]
[1746373972747,0.49330005,1834.3,1834.2,6.09408645]
[1746373972956,5.45108574,1834.5,1834.2,6.09408645]
[1746373973151,0.49330005,1834.3,1834.2,6.09408645]
[1746373973364,5.45108574,1834.5,1834.2,6.09408645]
[1746373973572,0.49330005,1834.3,1834.2,6.09408645]
[1746373973774,5.45108574,1834.5,1834.2,6.09408645]
[1746373973976,0.49330005,1834.3,1834.2,6.09408645]
[1746373974495,9.13080115,1834.5,1834.2,6.09408645]
[1746373974653,0.49305288,1834.3,1834.2,6.09408645]
[1746373974974,9.13080115,1834.5,1834.2,6.09408645]
[1746373975172,0.49305288,1834.3,1834.2,6.09408645]
[1746373975382,9.13080115,1834.5,1834.2,6.09408645]
[1746373975584,0.49305288,1834.3,1834.2,6.09408645]
[1746373975760,9.13080115,1834.5,1834.2,6.09408645]
[1746373976281,0.49305288,1834.4,1834.2,6.09408645]
[1746373977860,0.49305288,1834.4,1834.2,4.49]
[1746373978651,5.94442761,1834.4,1834.2,4.49]
[1746373978858,8.93020933,1834.4,1834.2,4.49]
[1746373979787,8.93020933,1834.4,1834.2,4.491]
[1746373980581,8.93020933,1834.4,1834.0,6.0986121]
[1746373980582,5.45213411,1834.2,1834.0,6.0986121]
[1746373980759,2.18968172,1834.2,1834.1,4.491]
[1746373982088,8.85237818,1834.4,1834.1,4.491]
[1746373985212,5.45171986,1834.3,1834.1,4.491]
[1746373985417,8.85238832,1834.4,1834.1,4.491]
[1746373986712,0.49249679,1834.3,1834.1,4.491]
[1746373986914,0.49249679,1834.3,1834.1,5.485352]
[1746373987116,8.85238832,1834.4,1834.1,5.485352]
[1746373987410,0.49249679,1834.2,1834.1,4.491]
[1746373987623,12.53210373,1834.4,1834.1,4.491]
[1746373987812,0.49249679,1834.2,1834.1,4.491]
[1746373988310,12.53210373,1834.4,1834.1,4.491]
[1746373988517,0.49249679,1834.2,1834.1,4.491]
[1746373988718,12.53210373,1834.4,1834.1,4.491]
[1746373988873,0.49249679,1834.2,1834.1,4.491]
[1746373989076,12.53210373,1834.4,1834.1,4.491]
[1746373989280,0.49249679,1834.2,1834.1,4.491]
[1746373989484,12.53210373,1834.4,1834.1,5.485352]
[1746373989685,0.49095195,1834.2,1834.1,4.491]
[1746373989915,7.08058816,1834.4,1834.1,4.491]
[1746373990123,0.49095195,1834.2,1834.1,9.94323198]
[1746373990319,7.08058816,1834.4,1834.1,9.94323198]
[1746373990498,0.49095195,1834.2,1834.1,9.94323198]
[1746373990699,3.40087275,1834.4,1834.1,11.48279506]
[1746373990912,0.49095195,1834.2,1834.1,9.94323198]
[1746373991111,3.40087275,1834.4,1834.1,9.94323198]
[1746373991421,0.49095195,1834.2,1834.1,9.94323198]
[1746373991586,3.40087275,1834.4,1834.1,9.94323198]
[1746373991781,0.49095195,1834.2,1834.1,9.94323198]
[1746373992027,3.67971541,1834.5,1834.2,5.45180626]
[1746373992321,3.67971541,1834.5,1834.3,6.21985489]
[1746373992723,3.67971541,1834.5,1834.2,12.31874659]
[1746373992924,3.67971541,1834.5,1834.2,12.31867384]
[1746373993231,3.67971541,1834.5,1834.3,5.45166656]
[1746373994306,6.64049713,1834.6,1834.3,5.45166656]
[1746373994507,5.86939713,1834.6,1834.3,5.45166656]
[1746373996734,5.86939713,1834.6,1834.2,12.31870152]
[1746373996890,11.32025429,1834.6,1834.2,15.0441043]
[1746373998822,11.32025429,1834.6,1834.2,29.5441043]
[1746373999122,2.18968172,1834.4,1834.2,24.09231488]
[1746373999425,2.18968172,1834.4,1834.2,26.05057426]
[1746374001724,0.48172367,1834.3,1834.2,26.05057426]
[1746374001925,2.18968172,1834.4,1834.2,26.05057426]
[1746374002102,0.48172367,1834.3,1834.2,26.05057426]
[1746374002304,2.18968172,1834.4,1834.2,29.34819099]
[1746374002512,0.48172367,1834.3,1834.2,29.34819099]
[1746374002829,2.18968172,1834.4,1834.2,29.34819099]
[1746374002997,0.48172367,1834.3,1834.2,29.34819099]
[1746374003328,2.18968172,1834.4,1834.2,29.34819099]
[1746374003529,0.48172367,1834.3,1834.2,29.34819099]
[1746374003732,2.18968172,1834.4,1834.2,29.34819099]
[1746374004025,0.48172367,1834.3,1834.2,29.34819099]
[1746374004329,2.18968172,1834.4,1834.2,29.34819699]
[1746374004531,0.48172367,1834.3,1834.2,29.34819699]
[1746374004707,2.18968172,1834.4,1834.2,29.34819699]
[1746374004910,0.48172367,1834.3,1834.2,29.34819699]
[1746374005108,2.18968172,1834.4,1834.2,29.34819699]
[1746374005331,0.48172367,1834.3,1834.2,23.89622883]
[1746374005563,2.18968172,1834.4,1834.2,23.89622883]